fUSD/lending_fUSD_20251214
["ID","MTS","AMOUNT","RATE_DAILY","PERIOD"]
[398467889,1765692633424,-500.0,0.00016898,2]
[398467890,1765692633434,-500.0,0.00016898,2]
[398467891,1765692633443,-500.0,0.00016898,2]
[398467892,1765692633453,-500.0,0.00016898,2]
[398467893,1765692633463,-500.0,0.00016898,2]
[398467894,1765692633473,-500.0,0.00016898,2]
[398467895,1765692633482,-500.0,0.00016898,2]
[398467896,1765692633491,-500.0,0.00016898,2]
[398467897,1765692633501,-500.0,0.00016898,2]
[398467898,1765692633510,-645.17176486,0.00016898,2]
[398467899,1765692633519,-350.0,0.00016898,2]
[398467900,1765692633529,-500.0,0.00016898,2]
[398467901,1765692633538,-500.0,0.00016898,2]
[398467902,1765692633547,-500.0,0.00016898,2]
[398467903,1765692633556,-500.0,0.00016898,2]
[398467904,1765692633565,-500.0,0.00016898,2]
[398467905,1765692633575,-500.0,0.00016898,2]
[398467906,1765692633584,-500.0,0.00016898,2]
[398467907,1765692633593,-500.0,0.00016898,2]
[398467908,1765692633602,-500.0,0.00016898,2]
[398467909,1765692633611,-500.0,0.00016898,2]
[398467910,1765692633620,-500.0,0.00016898,2]
[398467911,1765692633630,-500.0,0.00016898,2]
[398467912,1765692633639,-500.0,0.00016898,2]
[398467913,1765692633649,-500.0,0.00016898,2]
[398467914,1765692633658,-500.0,0.00016898,2]
[398467915,1765692633667,-500.0,0.00016898,2]
[398467916,1765692633677,-500.0,0.00016898,2]
[398467917,1765692633686,-500.0,0.00016898,2]
[398467918,1765692633695,-500.0,0.00016898,2]
[398467919,1765692633704,-500.0,0.00016898,2]
[398467920,1765692633713,-500.0,0.00016898,2]
[398467921,1765692633722,-500.0,0.00016898,2]
[398467922,1765692633731,-500.0,0.00016898,2]
[398467923,1765692633739,-500.0,0.00016898,2]
[398467924,1765692633748,-500.0,0.00016898,2]
[398467925,1765692633758,-500.0,0.00016898,2]
[398467926,1765692633767,-460.73415718,0.00016898,2]
[398467927,1765692633779,-39.26584282,0.00016898,2]
[398467928,1765692633789,-202.04810133,0.00016898,2]
[398467929,1765692633799,-500.0,0.00016898,2]
[398467930,1765692633809,-500.0,0.00016898,2]
[398467931,1765692633818,-13.10414262,0.00016898,2]
[398467932,1765692633835,-486.89585738,0.00016898,2]
[398467933,1765692633844,-166.59,0.00016898,2]
[398467934,1765692633853,-151.700099,0.00016899,2]
[398467935,1765692633895,-383.38636946,0.00016899,2]
[398467936,1765692634056,-1000.0,0.00016899,2]
[398467937,1765692634067,-501.00324206,0.00016899,2]
[398467938,1765692634783,-547.77308168,0.00016899,2]
[398467939,1765692638183,-1294.81404362,0.00016899,2]
[398467940,1765692638195,-1091.84846418,0.00016899,2]
[398467941,1765692638204,-1208.15153582,0.000169,2]
[398467942,1765692638242,-705.84846418,0.000169,2]
[398467943,1765692638252,-3142.077,0.00016911,2]
[398467944,1765692638261,-165.2899578,0.00016911,2]
[398467945,1765692638271,-1000.0,0.00016921,2]
[398467946,1765692638280,-1000.0,0.00016921,2]
[398467947,1765692638292,-1000.0,0.00016921,2]
[398467948,1765692638302,-1000.0,0.00016921,2]
[398467949,1765692638312,-500.0,0.00016921,2]
[398467950,1765692638321,-205.74375609,0.00016921,2]
[398467951,1765692638331,-158.01421038,0.00016921,2]
[398467952,1765692638340,-2317.52,0.00016922,2]
[398467953,1765692638350,-999.99,0.00016922,2]
[398467954,1765692638359,-150.99,0.00016922,2]
[398467955,1765692638369,-9999.99,0.00016922,2]
[398467956,1765692638379,-9999.99,0.00016922,2]
[398467957,1765692638388,-3726.9804175,0.00016922,2]
[398467974,1765692640473,-1440.4479642,0.00016922,2]
[398467975,1765692640488,-1188.74622491,0.00016922,2]
[398467976,1765692640609,-1825.86696782,0.00016922,2]
[398467977,1765692640717,-871.29316464,0.00016922,2]
[398467981,1765692643326,-603.51526093,0.00016922,2]
[398467982,1765692643338,-1677.46,0.00016922,2]
[398467983,1765692643349,-150.99,0.00016922,2]
[398467984,1765692643359,-143.40110408,0.00016922,2]
[398467985,1765692643371,-338.97889592,0.00016922,2]
[398467986,1765692643380,-962.20516655,0.00016942,2]
[398467987,1765692643543,-836.00517804,0.00016942,2]
[398467992,1765692646326,-1246.71682473,0.00016942,2]
[398467993,1765692646336,-481.15230225,0.00016949,2]
[398467994,1765692646345,-352.89,0.00016972,2]
[398467995,1765692646355,-306.30880156,0.00016973,2]
[398467996,1765692646363,-500.0,0.00016973,2]
[398467997,1765692646372,-500.0,0.00016973,2]
[398467998,1765692646381,-500.0,0.00016973,2]
[398467999,1765692646390,-500.0,0.00016973,2]
[398468000,1765692646399,-500.0,0.00016973,2]
[398468001,1765692646409,-503.6789976,0.00016981,2]
[398468002,1765692646418,-8713.870755,0.00016981,2]
[398468003,1765692646427,-200.0,0.00016986,2]
[398468004,1765692646436,-350.0,0.00016986,2]
[398468005,1765692646446,-1874.0,0.00016986,2]
[398468006,1765692646455,-500.0,0.00016986,2]
[398468007,1765692646464,-500.0,0.00016999,2]
[398468008,1765692646473,-500.0,0.00016999,2]
[398468009,1765692646482,-500.0,0.00016999,2]
[398468011,1765692646491,-500.0,0.00016999,2]
[398468013,1765692646499,-633.56956953,0.00016999,2]
[398468014,1765692646508,-500.0,0.00016999,2]
[398468015,1765692646517,-500.0,0.00016999,2]
[398468016,1765692646526,-500.0,0.00016999,2]
[398468017,1765692646535,-96890.79685323,0.00017,2]
[398468020,1765692795963,200.0,0.00015956,2]
[398468021,1765692877916,161.59,0.0001596,2]
[398468022,1765692907712,166.66,0.00015124,2]
[398468023,1765692907941,166.66,0.00015442,2]
[398468024,1765692908153,166.66,0.00015761,2]
[398468025,1765693110280,1000.0,0.00013699,2]
[398468026,1765693546446,502.96567494,0.00016,5]
[398468028,1765693555075,187.0,0.00015982,2]
[398468029,1765693561151,187.0,0.00015985,2]
[398468030,1765693566345,4680.0,0.00015812,2]
[398468031,1765693571505,4680.0,0.00015769,2]
[398468032,1765693590266,35921.04432506,0.00015809,2]
[398468033,1765693593770,-383.15969786,0.00015809,2]
[398468034,1765693595815,-266.20136899,0.00015809,2]
[398468035,1765693597977,-274.18489119,0.00015809,2]
[398468036,1765693622859,-300.0,0.00015808,2]
[398468037,1765693622885,-300.0,0.00015808,2]
[398468038,1765693622907,-35.68629468,0.00015809,2]
[398468039,1765693627852,-300.2577062,0.00015809,2]
[398468040,1765693630963,-177.13657127,0.00015809,2]
[398468041,1765693635733,-377.63423123,0.00015809,2]
[398468042,1765693638233,-300.0,0.00015809,2]
[398468043,1765693640965,-288.99193751,0.00015809,2]
[398468044,1765693644364,-278.80710615,0.00015809,2]
[398468045,1765693645964,-245.82559604,0.00015809,2]
[398468046,1765693650138,-155.0126836,0.00015809,2]
[398468047,1765693653850,-197.23732865,0.00015809,2]
[398468052,1765693662735,-228.15260108,0.00015809,2]
[398468053,1765693663828,-250.0,0.00015809,2]
[398468054,1765693665330,-459.6043359,0.00015809,2]
[398468055,1765693667363,-301.45411047,0.00015809,2]
[398468056,1765693668900,-234.50910942,0.00015809,2]
[398468057,1765693671602,-180.65262753,0.00015809,2]
[398468058,1765693675675,-247.2401402,0.00015809,2]
[398468059,1765693682864,-300.0,0.00015808,2]
[398468060,1765693682888,-114.75765429,0.00015809,2]
[398468061,1765693700199,-275.90767745,0.00015809,2]
[398468062,1765693701767,-200.30502567,0.00015809,2]
[398468063,1765693709899,-162.58563528,0.00015809,2]
[398468064,1765693712414,-286.96154261,0.00015809,2]
[398468067,1765693821807,179.31,0.00012575,2]
[398468076,1765693831416,-300.0,0.00015807,2]
[398468077,1765693831427,-829.12060299,0.00015807,2]
[398468078,1765693831439,-370.87939701,0.00015807,2]
[398468079,1765693831448,-300.0,0.00015807,2]
[398468080,1765693831457,-500.0,0.00015808,2]
[398468081,1765693831468,-500.0,0.00015808,2]
[398468082,1765693831479,-475.54122716,0.00015808,2]
[398468083,1765693831489,-500.0,0.00015808,2]
[398468084,1765693831498,-500.0,0.00015808,2]
[398468085,1765693831507,-500.0,0.00015808,2]
[398468086,1765693831516,-121.00063726,0.00015808,2]
[398468087,1765693831533,-324.27327818,0.00015808,2]
[398468088,1765693831545,-54.72608456,0.00015808,2]
[398468089,1765693831554,-199.03366398,0.00015808,2]
[398468090,1765693831566,-300.96633602,0.00015808,2]
[398468091,1765693831576,-500.0,0.00015808,2]
[398468092,1765693831585,-500.0,0.00015808,2]
[398468093,1765693831594,-500.0,0.00015808,2]
[398468094,1765693831604,-500.0,0.00015808,2]
[398468095,1765693831613,-499.99999999,0.00015808,2]
[398468097,1765693831623,-143.83424404,0.00015809,2]
[398468099,1765693831635,-262.79087543,0.00015809,2]
[398468112,1765693837728,-1320.48682641,0.00015809,2]
[398468113,1765693837740,-349.056,0.00015809,2]
[398468117,1765693839416,-505.60542929,0.00015809,2]
[398468118,1765693839531,-2639.49999996,0.00015809,2]
[398468120,1765693839944,-1.7e-07,0.00015809,2]
[398468127,1765693845344,-974.9999998,0.00015809,2]
[398468131,1765693845515,-582.31024854,0.00015809,2]
[398468132,1765693850738,10000.01,0.0001571,2]
[398468133,1765693850764,10000.01,0.0001571,2]
[398468134,1765693850795,10000.01,0.0001571,2]
[398468135,1765693850821,10000.01,0.0001571,2]
[398468136,1765693850846,1046.6094,0.0001571,2]
[398468139,1765693874351,5525.0,0.000112,5]
[398468140,1765693874406,3428.4006,0.00011,3]
[398468141,1765693874431,2096.5994,0.00011,3]
[398468142,1765693874480,7903.4106,0.000108,2]
[398468143,1765693874503,10000.01,0.000108,2]
[398468144,1765693874525,8933.5794,0.000108,2]
[398468145,1765693904786,1066.4306,0.000112,5]
[398468146,1765693904810,4458.5694,0.000112,5]
[398468147,1765693905001,5525.0,0.00011,3]
[398468148,1765693905230,16.4406,0.000108,2]
[398468149,1765693905254,3408.5594,0.000108,2]
[398468150,1765693936255,1114.0,0.000111,5]
[398468151,1765694021192,5477.4506,0.0001571,2]
[398468152,1765694021218,10000.01,0.0001571,2]
[398468153,1765694021243,10000.01,0.0001571,2]
[398468154,1765694021267,10000.01,0.0001571,2]
[398468155,1765694021292,4522.5894,0.0001571,2]
[398468156,1765694021331,5477.4206,0.00015,2]
[398468157,1765694021353,10000.01,0.00015,2]
[398468158,1765694021376,10000.01,0.00015,2]
[398468159,1765694021406,10000.01,0.00015,2]
[398468160,1765694021428,10000.01,0.00015,2]
[398468161,1765694021451,10000.01,0.00015,2]
[398468162,1765694021482,412592.5294,0.00015,2]
[398468163,1765694047515,10000.01,0.0001571,2]
[398468164,1765694047546,3453.5487,0.0001571,2]
[398468165,1765694055832,276.25331,0.00014,2]
[398468166,1765694086893,206.5,0.000153,2]
[398468167,1765694151596,999.0,0.00015443,3]
[398468168,1765694188132,5064.70799,0.0001571,2]
[398468169,1765694188158,10000.01,0.0001571,2]
[398468170,1765694188183,10000.01,0.0001571,2]
[398468171,1765694188207,10000.01,0.0001571,2]
[398468172,1765694188232,10000.01,0.0001571,2]
[398468173,1765694188263,10000.01,0.0001571,2]
[398468174,1765694188289,10000.01,0.0001571,2]
[398468175,1765694188313,10000.01,0.0001571,2]
[398468176,1765694188339,10000.01,0.0001571,2]
[398468177,1765694188363,10000.01,0.0001571,2]
[398468178,1765694194628,-500.0,0.00015417,2]
[398468179,1765694194661,-444.80409,0.0001571,2]
[398468180,1765694194700,-1889.60818,0.0001571,2]
[398468181,1765694194742,-3779.21636,0.0001571,2]
[398468182,1765694194781,-2441.57728,0.0001571,2]
[398468183,1765694205280,202.6598628,0.00015708,2]
[398468184,1765694205408,316.0,0.00015715,2]
[398468185,1765694227629,1310.036072,7.945e-05,2]
[398468190,1765694279990,446.729012,0.00015719,2]
[398468191,1765694359000,7927.244916,0.00015708,2]
[398468192,1765694359024,10000.01,0.00015708,2]
[398468193,1765694359509,10000.01,0.00015708,2]
[398468194,1765694359569,10000.01,0.00015708,2]
[398468195,1765694359598,10000.01,0.00015708,2]
[398468196,1765694359629,10000.01,0.00015708,2]
[398468197,1765694359654,10000.01,0.00015708,2]
[398468198,1765694359679,10000.01,0.00015708,2]
[398468199,1765694359702,10000.01,0.00015708,2]
[398468200,1765694359726,7910.022784,0.00015708,2]
[398468201,1765694371655,186.87974473,0.0001571,2]
[398468202,1765694407658,1649.747901,7.945e-05,2]
[398468203,1765694439067,860.65,0.00015207,2]
[398468204,1765694527445,7489.612099,0.00015708,2]
[398468205,1765694527475,10000.01,0.00015708,2]
[398468206,1765694527503,10000.01,0.00015708,2]
[398468207,1765694527528,10000.01,0.00015708,2]
[398468208,1765694527553,10000.01,0.00015708,2]
[398468209,1765694527581,10000.01,0.00015708,2]
[398468210,1765694527607,10000.01,0.00015708,2]
[398468211,1765694527632,10000.01,0.00015708,2]
[398468212,1765694527661,10000.01,0.00015708,2]
[398468213,1765694527686,6243.265601,0.00015708,2]
[398468214,1765694550413,1000.0,0.00015153,2]
[398468215,1765694644831,2756.744399,0.0001511,2]
[398468216,1765694644856,318.825601,0.0001511,2]
[398468217,1765694655872,5290.67977789,0.0001571,2]
[398468218,1765694672824,1000.0,0.0001571,2]
[398468219,1765694703479,3390.50462111,0.00015707,2]
[398468220,1765694703506,10000.01,0.00015707,2]
[398468221,1765694703535,10000.01,0.00015707,2]
[398468222,1765694703565,10000.01,0.00015707,2]
[398468223,1765694703592,10000.01,0.00015707,2]
[398468224,1765694703619,10000.01,0.00015707,2]
[398468225,1765694703645,10000.01,0.00015707,2]
[398468226,1765694703672,10000.01,0.00015707,2]
[398468227,1765694703697,10000.01,0.00015707,2]
[398468228,1765694703722,10000.01,0.00015707,2]
[398468231,1765694727842,-2205.80287889,0.00015707,2]
[398468232,1765694743062,-168.9702,0.00015708,2]
[398468233,1765694758607,-2500.0,0.0001571,2]
[398468234,1765694769918,202.30798679,0.00015657,2]
[398468235,1765694773965,202.30798678,0.00015707,2]
[398468243,1765694818379,240.3711,0.00015644,2]
[398468244,1765694842987,1000.0,0.0001571,2]
[398468245,1765694854478,3355.02292643,0.00015707,2]
[398468246,1765694854505,10000.01,0.00015707,2]
[398468247,1765694854534,6644.98707357,0.00015707,2]
[398468248,1765694907245,2500.0,0.0001571,2]
[398468249,1765694924272,166.05,0.00015539,2]
[398468250,1765694948325,686.18,0.00015064,2]
[398468251,1765695017552,2.79292643,0.00015062,2]
[398468252,1765695017576,197.20707357,0.00015062,2]
[398468253,1765695020524,9802.80292643,0.00015707,2]
[398468254,1765695020552,10000.01,0.00015707,2]
[398468255,1765695020578,8569.66957357,0.00015707,2]
[398468291,1765695031959,-282.0,0.00015757,2]
[398468293,1765695031968,-1200.0,0.0001577,2]
[398468295,1765695031977,-300.0,0.0001577,2]
[398468297,1765695031987,-1200.0,0.0001577,2]
[398468299,1765695031996,-300.0,0.0001577,2]
[398468301,1765695032005,-48.6750841,0.00015771,2]
[398468303,1765695032016,-1046.51182598,0.00015771,2]
[398468329,1765695032251,-190.32499022,0.00015771,2]
[398468330,1765695032260,-6817.53228804,0.00015771,2]
[398468331,1765695032360,-974.37462755,0.00015771,2]
[398468332,1765695032371,-485.01153519,0.00015771,2]
[398468333,1765695032383,-664.14,0.00015771,2]
[398468342,1765695039576,-4548.71240763,0.00015771,2]
[398468343,1765695039758,-15707.48259239,0.00015771,2]
[398468344,1765695039768,-1000.0,0.00015799,2]
[398468345,1765695039777,-168.0,0.000158,2]
[398468346,1765695039787,-6415.52,0.000158,2]
[398468347,1765695039796,-500.0,0.00015803,2]
[398468348,1765695039805,-500.0,0.00015803,2]
[398468349,1765695039814,-291.86252588,0.00015803,2]
[398468350,1765695039823,-500.0,0.00015803,2]
[398468351,1765695039833,-547.69306742,0.00015803,2]
[398468352,1765695039842,-500.0,0.00015803,2]
[398468353,1765695039851,-500.0,0.00015803,2]
[398468354,1765695039860,-201.5746023,0.00015803,2]
[398468355,1765695039869,-500.0,0.00015803,2]
[398468356,1765695039878,-500.0,0.00015803,2]
[398468357,1765695039888,-500.0,0.00015803,2]
[398468358,1765695039897,-500.0,0.00015803,2]
[398468359,1765695039907,-500.0,0.00015803,2]
[398468360,1765695039915,-500.0,0.00015803,2]
[398468361,1765695039925,-500.0,0.00015803,2]
[398468362,1765695039934,-500.0,0.00015803,2]
[398468363,1765695039943,-500.0,0.00015803,2]
[398468364,1765695039952,-452.40961971,0.00015803,2]
[398468365,1765695039961,-500.0,0.00015803,2]
[398468366,1765695039970,-500.0,0.00015803,2]
[398468367,1765695039979,-500.0,0.00015803,2]
[398468368,1765695039988,-500.0,0.00015803,2]
[398468369,1765695039997,-500.0,0.00015803,2]
[398468370,1765695040007,-500.0,0.00015803,2]
[398468371,1765695040018,-500.0,0.00015803,2]
[398468372,1765695040027,-500.0,0.00015803,2]
[398468373,1765695040037,-500.0,0.00015803,2]
[398468374,1765695040046,-500.0,0.00015803,2]
[398468375,1765695040055,-500.0,0.00015803,2]
[398468376,1765695040064,-500.0,0.00015803,2]
[398468377,1765695040073,-617.10650891,0.00015803,2]
[398468378,1765695040082,-500.0,0.00015803,2]
[398468379,1765695040091,-500.0,0.00015803,2]
[398468380,1765695040100,-500.0,0.00015803,2]
[398468382,1765695040110,-500.0,0.00015803,2]
[398468383,1765695040119,-500.0,0.00015803,2]
[398468384,1765695040128,-500.0,0.00015803,2]
[398468385,1765695040137,-500.0,0.00015803,2]
[398468386,1765695040147,-500.0,0.00015803,2]
[398468387,1765695040156,-500.0,0.00015803,2]
[398468388,1765695040165,-500.0,0.00015803,2]
[398468389,1765695040174,-500.0,0.00015803,2]
[398468390,1765695040184,-500.0,0.00015803,2]
[398468392,1765695040193,-500.0,0.00015803,2]
[398468393,1765695040202,-791.46,0.00015804,2]
[398468394,1765695040211,-500.0,0.00015805,2]
[398468395,1765695040220,-35977.4485168,0.00015808,2]
[398468396,1765695040230,-152.847575,0.00015808,2]
[398468397,1765695040239,-151.0,0.00015808,2]
[398468398,1765695040248,-151.0,0.00015808,2]
[398468399,1765695040257,-151.0,0.00015808,2]
[398468400,1765695040266,-151.0,0.00015808,2]
[398468401,1765695040275,-151.0,0.00015808,2]
[398468402,1765695040284,-153.204443,0.00015808,2]
[398468403,1765695040293,-151.0,0.00015808,2]
[398468404,1765695040302,-539.29350446,0.00015808,2]
[398468405,1765695040312,-199.42627282,0.00015808,2]
[398468406,1765695040322,-300.0,0.00015808,2]
[398468407,1765695040333,-200.0,0.00015809,2]
[398468408,1765695040342,-200.0,0.00015809,2]
[398468409,1765695040352,-119311.42617803,0.00015809,2]
[398468410,1765695040361,-151.0,0.0001581,2]
[398468411,1765695040371,-151.0,0.0001581,2]
[398468412,1765695040381,-151.0,0.0001581,2]
[398468413,1765695040391,-151.0,0.0001581,2]
[398468414,1765695040401,-151.0,0.0001581,2]
[398468415,1765695040412,-209.488496,0.0001581,2]
[398468416,1765695040421,-151.0,0.0001581,2]
[398468417,1765695040431,-156.684028,0.0001581,2]
[398468418,1765695040440,-399.024738,0.0001581,2]
[398468419,1765695040450,-399.024738,0.0001581,2]
[398468420,1765695040459,-399.024738,0.0001581,2]
[398468421,1765695040470,-399.024738,0.0001581,2]
[398468422,1765695040480,-159.123004,0.0001581,2]
[398468423,1765695040489,-316.0,0.0001584,2]
[398468424,1765695040499,-316.0,0.00015956,2]
[398468425,1765695040509,-316.0,0.0001596,2]
[398468426,1765695040518,-200.0,0.00015967,2]
[398468427,1765695040527,-500.0,0.00015969,2]
[398468428,1765695040536,-786.17331686,0.00015989,2]
[398468429,1765695040545,-500.0,0.00016,5]
[398468430,1765695040555,-500.0,0.00016,2]
[398468431,1765695040565,-500.0,0.00016,5]
[398468432,1765695040575,-152.0,0.00016,2]
[398468433,1765695040585,-152.0,0.00016,2]
[398468434,1765695040595,-152.0,0.00016,2]
[398468435,1765695040604,-154.71513631,0.00016,2]
[398468436,1765695040614,-154.18394056,0.00016,2]
[398468437,1765695040623,-152.0,0.00016,2]
[398468438,1765695040634,-153.0,0.00016,2]
[398468439,1765695040646,-153.86030906,0.00016,2]
[398468440,1765695040656,-300.0,0.00016038,2]
[398468441,1765695040667,-1000.0,0.00016038,2]
[398468442,1765695040679,-574.12855637,0.00016038,2]
[398468443,1765695040689,-1111.0,0.00016038,2]
[398468444,1765695040699,-1000.0,0.00016038,2]
[398468445,1765695040709,-500.0,0.00016038,2]
[398468446,1765695040719,-1000.0,0.00016038,2]
[398468447,1765695040730,-500.0,0.00016038,2]
[398468448,1765695040740,-1000.0,0.00016038,2]
[398468449,1765695040749,-500.0,0.00016038,2]
[398468450,1765695040759,-620.0,0.00016038,2]
[398468451,1765695040771,-1107.7691788,0.00016038,2]
[398468452,1765695040782,-263.31566499,0.00016038,2]
[398468453,1765695040792,-399.4459985,0.00016038,2]
[398468454,1765695040805,-338.53189062,0.00016038,2]
[398468455,1765695040815,-151.26433337,0.00016038,2]
[398468456,1765695040825,-153.05897419,0.00016038,2]
[398468457,1765695040837,-672.94515647,0.00016038,2]
[398468458,1765695040848,-500.0,0.00016038,2]
[398468459,1765695040859,-500.0,0.00016038,2]
[398468460,1765695040868,-500.0,0.00016038,2]
[398468461,1765695040878,-500.0,0.00016038,2]
[398468462,1765695040887,-500.0,0.00016038,2]
[398468463,1765695040897,-500.0,0.00016038,2]
[398468464,1765695040907,-512.21556124,0.00016038,2]
[398468465,1765695040916,-791.46,0.00016078,2]
[398468466,1765695040926,-166.66,0.00016079,2]
[398468467,1765695040935,-1111.0,0.00016093,2]
[398468468,1765695040945,-500.0,0.00016103,2]
[398468469,1765695040956,-1319.82403474,0.00016104,2]
[398468470,1765695040966,-5888.0,0.00016107,2]
[398468471,1765695040975,-1219.0,0.00016125,2]
[398468472,1765695040985,-1111.0,0.00016148,2]
[398468473,1765695040994,-5290.67977782,0.00016197,2]
[398468474,1765695041004,-151.0,0.00016197,2]
[398468475,1765695041013,-151.0,0.00016197,2]
[398468476,1765695041022,-247.181247,0.00016197,2]
[398468477,1765695041032,-399.024738,0.00016197,2]
[398468478,1765695041043,-399.024738,0.00016197,2]
[398468479,1765695041053,-399.024738,0.00016197,2]
[398468480,1765695041063,-399.024738,0.00016197,2]
[398468481,1765695041072,-3361.89381235,0.00016199,2]
[398468482,1765695041081,-150.0,0.000162,2]
[398468483,1765695041090,-150.0,0.000162,2]
[398468484,1765695041101,-150.0,0.000162,2]
[398468485,1765695041114,-150.0,0.000162,2]
[398468486,1765695041124,-150.0,0.000162,2]
[398468487,1765695041133,-150.0,0.000162,2]
[398468488,1765695041143,-156.3580554,0.000162,2]
[398468489,1765695041153,-5000.00836662,0.000162,5]
[398468490,1765695041162,-150.0,0.000162,2]
[398468491,1765695041172,-150.0,0.000162,2]
[398468492,1765695041185,-300.0,0.000162,2]
[398468493,1765695041197,-703.41,0.000162,2]
[398468494,1765695041206,-150.0,0.000162,2]
[398468495,1765695041215,-150.0,0.000162,2]
[398468496,1765695041225,-1407.72,0.000162,2]
[398468497,1765695041235,-150.0,0.000162,2]
[398468498,1765695041244,-151.0,0.000162,2]
[398468499,1765695041253,-161.141359,0.000162,2]
[398468500,1765695041263,-214.443349,0.000162,2]
[398468501,1765695041272,-214.443349,0.000162,2]
[398468502,1765695041281,-214.443349,0.000162,2]
[398468503,1765695041291,-214.443349,0.000162,2]
[398468504,1765695041300,-151.0,0.000162,2]
[398468505,1765695041310,-262.661967,0.000162,2]
[398468506,1765695041320,-262.661967,0.000162,2]
[398468507,1765695041329,-262.661967,0.000162,2]
[398468508,1765695041338,-262.661967,0.000162,2]
[398468509,1765695041347,-150.0,0.000162,2]
[398468510,1765695041356,-150.0,0.000162,2]
[398468511,1765695041366,-1111.0,0.00016203,2]
[398468512,1765695041374,-316.0,0.00016205,2]
[398468513,1765695041383,-1219.0,0.00016222,2]
[398468514,1765695041392,-316.0,0.00016231,2]
[398468515,1765695041405,-206.41237832,0.00016232,2]
[398468516,1765695041414,-931.0,0.00016233,2]
[398468517,1765695041423,-151.0,0.00016233,2]
[398468518,1765695041432,-325.94,0.00016233,2]
[398468519,1765695041441,-1576.0,0.00016235,2]
[398468520,1765695041451,-151.0,0.00016235,2]
[398468521,1765695041460,-151.0,0.00016235,2]
[398468522,1765695041469,-168.0,0.00016295,2]
[398468523,1765695041478,-4828.45080212,0.000163,2]
[398468524,1765695041487,-5973.2308,0.000163,2]
[398468525,1765695041496,-1000.0,0.000163,2]
[398468526,1765695041505,-4101.28650057,0.000163,2]
[398468527,1765695041514,-931.0,0.00016334,2]
[398468528,1765695041523,-791.46,0.00016352,2]
[398468529,1765695041532,-500.0,0.00016373,2]
[398468530,1765695041541,-500.0,0.00016373,2]
[398468531,1765695041550,-500.0,0.00016373,2]
[398468532,1765695041559,-500.0,0.00016373,2]
[398468533,1765695041568,-500.0,0.00016373,2]
[398468534,1765695041577,-166.05,0.00016394,2]
[398468535,1765695041586,-166.66,0.00016397,2]
[398468536,1765695041595,-884.61485495,0.00016399,2]
[398468537,1765695041604,-60609.84527854,0.000164,2]
[398468538,1765695041613,-151.0,0.000164,2]
[398468539,1765695041622,-151.0,0.000164,2]
[398468540,1765695041631,-151.0,0.000164,2]
[398468541,1765695041639,-214.443349,0.000164,2]
[398468542,1765695041648,-214.443349,0.000164,2]
[398468543,1765695041657,-214.443349,0.000164,2]
[398468544,1765695041666,-214.443349,0.000164,2]
[398468545,1765695041675,-262.661967,0.000164,2]
[398468546,1765695041684,-262.661967,0.000164,2]
[398468547,1765695041693,-262.661967,0.000164,2]
[398468548,1765695041702,-262.661967,0.000164,2]